[Event "UKR-ch"]
[Site "Lutsk UKR"]
[Date "2019.12.12"]
[Round "3.3"]
[White "Moiseenko, Alexander"]
[Black "Golubka, Petro"]
[Result "1-0"]
[ECO "D35"]
[WhiteElo "2623"]
[BlackElo "2479"]
[WhiteFideId "-1"]
[BlackFideId "-1"]
[PlyCount "115"]
[GameId "2129404752039166"]
[EventDate "2019.12.10"]
[EventType "tourn"]
[EventRounds "9"]
[EventCountry "UKR"]
[EventCategory "15"]
[SourceTitle "10 Days #600"]
[Source "Chess Mix"]
[SourceDate "2019.12.20"]
[SourceVersion "1"]
[SourceVersionDate "2019.12.20"]
[SourceQuality "1"]
[TimeControl "40/5400+30:1800+30"]

1. d4 {[%emt 0:00:00]} d5 {[%emt 0:00:00]} 2. c4 {[%emt 0:00:00]} e6 {[%emt 0:00:00]} 3. Nc3 {[%emt 0:02:55]} Nf6 {[%emt 0:00:00]} 4. Nf3 {[%emt 0:00:56]} Nbd7 {[%emt 0:00:00]} 5. cxd5 {[%emt 0:07:28]} exd5 {[%emt 0:00:03]} 6. Bg5 {[%emt 0:00:04]} c6 {[%emt 0:00:26]} 7. e3 {[%emt 0:00:30]} h6 {[%emt 0:00:20]} 8. Bh4 {[%emt 0:00:47]} g5 {[%emt 0:00:17]} 9. Bg3 {[%emt 0:00:04]} Nh5 {[%emt 0:00:08]} 10. Bd3 {[%emt 0:04:45]} Nxg3 {[%emt 0:02:17]} 11. hxg3 {[%emt 0:00:05]} Bg7 {[%emt 0:00:44]} 12. O-O {[%emt 0:01:15]} O-O {[%emt 0:19:19]} 13. b4 {[%emt 0:03:41]} a6 {[%emt 0:06:13]} 14. a4 {[%emt 0:01:24]} Qe7 {[%emt 0:00:49]} 15. b5 a5 {[%emt 0:18:44]} 16. Qb3 {[%emt 0:17:08]} Rd8 {[%emt 0:04:29]} 17. Rfc1 {[%emt 0:01:16]} Nf8 {[%emt 0:01:32]} 18. Ne2 {[%emt 0:15:26]} Bd7 {[%emt 0:00:35]} 19. Rab1 {[%emt 0:00:42]} Qd6 {[%emt 0:04:58]} 20. bxc6 {[%emt 0:06:03]} bxc6 {[%emt 0:00:38]} 21. Qc2 {[%emt 0:00:59]} Rdb8 {[%emt 0:01:00]} 22. Bf5 {[%emt 0:05:16]} Bxf5 {[%emt 0:09:13]} 23. Qxf5 {[%emt 0:01:32]} Nd7 {[%emt 0:01:38]} 24. Qc2 {[%emt 0:05:29]} Rxb1 {[%emt 0:01:46]} 25. Rxb1 {[%emt 0:00:23]} c5 {[%emt 0:02:18]} 26. Rb5 {[%emt 0:00:58]} Bf8 {[%emt 0:04:51]} 27. Qd2 {[%emt 0:06:18]} cxd4 {[%emt 0:01:31]} 28. Nfxd4 {[%emt 0:00:54]} Qa3 {[%emt 0:02:50]} 29. Qc2 {[%emt 0:06:21]} Nf6 {[%emt 0:01:57]} 30. Rb1 {[%emt 0:00:50]} Ne4 {[%emt 0:03:00]} 31. Nb5 {[%emt 0:05:46]} Qc5 {[%emt 0:01:53]} 32. Qxc5 {[%emt 0:00:29]} Nxc5 {[%emt 0:00:40]} 33. Nbc3 {[%emt 0:01:08]} Bg7 {[%emt 0:04:44]} 34. Rb5 {[%emt 0:00:23]} Bxc3 {[%emt 0:02:16]} 35. Nxc3 {[%emt 0:01:13]} Ne4 {[%emt 0:00:07]} 36. Nxd5 {[%emt 0:01:32]} Kg7 {[%emt 0:00:21]} 37. g4 {[%emt 0:00:50]} Rc8 {[%emt 0:01:04]} 38. f3 {[%emt 0:00:23]} Rc1+ {[%emt 0:02:06]} 39. Kh2 {[%emt 0:00:04]} Nc5 {[%emt 0:00:30]} 40. Rxa5 {[%emt 0:00:00]} Rc4 {[%emt 0:00:00]} 41. e4 {[%emt 0:03:02]} Nxa4 {[%emt 0:00:24]} 42. Ne3 {[%emt 0:00:15]} Rb4 {[%emt 0:00:05]} 43. Nf5+ {[%emt 0:00:21]} Kg6 {[%emt 0:00:23]} 44. Ra8 {[%emt 0:01:12]} Nc5 {[%emt 0:00:21]} 45. Rh8 {[%emt 0:04:29]} Kf6 {[%emt 0:00:11]} 46. Rxh6+ {[%emt 0:01:42]} Ke5 {[%emt 0:00:09]} 47. Nd6 {[%emt 0:01:53]} Nd3 {[%emt 0:00:30]} 48. Nxf7+ {[%emt 0:00:28]} Kf4 {[%emt 0:00:08]} 49. Rf6+ {[%emt 0:03:20]} Ke3 {[%emt 0:00:07]} 50. Nxg5 {[%emt 0:00:37]} Rb2 {[%emt 0:00:22]} 51. Ra6 {[%emt 0:01:18]} Ne1 {[%emt 0:00:35]} 52. Ra3+ {[%emt 0:00:43]} Kf4 {[%emt 0:00:22]} 53. Nh3+ {[%emt 0:00:28]} Ke5 {[%emt 0:00:05]} 54. Ra5+ {[%emt 0:02:20]} Kf6 {[%emt 0:00:05]} 55. g5+ {[%emt 0:01:32]} Kg7 {[%emt 0:00:06]} 56. Ra7+ {[%emt 0:03:38]} Kg6 {[%emt 0:00:10]} 57. Nf4+ {[%emt 0:00:34]} Kxg5 {[%emt 0:00:05]} 58. Kg3 {[%emt 0:00:10]} 1-0

[Event "UKR-ch"]
[Site "Lutsk UKR"]
[Date "2019.12.13"]
[Round "4.3"]
[White "Golubka, Petro"]
[Black "Vysochin, Spartak"]
[Result "1/2-1/2"]
[ECO "B14"]
[WhiteElo "2479"]
[BlackElo "2512"]
[WhiteFideId "-1"]
[BlackFideId "-1"]
[PlyCount "41"]
[GameId "2129404752039167"]
[EventDate "2019.12.10"]
[EventType "tourn"]
[EventRounds "9"]
[EventCountry "UKR"]
[EventCategory "15"]
[SourceTitle "10 Days #600"]
[Source "Chess Mix"]
[SourceDate "2019.12.20"]
[SourceVersion "1"]
[SourceVersionDate "2019.12.20"]
[SourceQuality "1"]
[TimeControl "40/5400+30:1800+30"]

1. c4 {[%emt 0:00:00]} c6 {[%emt 0:00:00]} 2. e4 {[%emt 0:00:00]} d5 {[%emt 0:00:09]} 3. exd5 {[%emt 0:00:00]} cxd5 {[%emt 0:00:08]} 4. d4 {[%emt 0:00:00]} Nf6 {[%emt 0:00:34]} 5. Nc3 {[%emt 0:00:00]} g6 {[%emt 0:00:47]} 6. Bg5 {[%emt 0:06:00]} Bg7 {[%emt 0:05:07]} 7. Bxf6 {[%emt 0:03:56]} Bxf6 {[%emt 0:01:11]} 8. cxd5 {[%emt 0:00:05]} O-O {[%emt 0:03:19]} 9. Qd2 {[%emt 0:02:29]} e6 {[%emt 0:16:23]} 10. Bc4 {[%emt 0:10:24]} exd5 {[%emt 0:00:26]} 11. Bxd5 {[%emt 0:02:41]} Nc6 {[%emt 0:01:49]} 12. Nge2 {[%emt 0:03:27]} Qb6 {[%emt 0:04:09]} 13. Rd1 {[%emt 0:08:49]} Bg4 {[%emt 0:08:02]} 14. f3 {[%emt 0:10:15]} Be6 {[%emt 0:01:56]} 15. O-O {[%emt 0:01:48]} Rad8 {[%emt 0:00:16]} 16. Bxc6 {[%emt 0:02:00]} bxc6 {[%emt 0:02:59]} 17. b3 {[%emt 0:01:38]} Rfe8 {[%emt 0:01:20]} 18. Kh1 {[%emt 0:03:20]} Bc8 {[%emt 0:03:19]} 19. Ne4 {[%emt 0:02:28]} Bg7 {[%emt 0:00:42]} 20. Nc5 {[%emt 0:00:55]} a5 {[%emt 0:08:49]} 21. Qc2 {[%emt 0:03:12]} 1/2-1/2

[Event "UKR-ch"]
[Site "Lutsk UKR"]
[Date "2019.12.14"]
[Round "5.4"]
[White "Bernadskiy, Vitaliy"]
[Black "Golubka, Petro"]
[Result "1-0"]
[ECO "D20"]
[WhiteElo "2593"]
[BlackElo "2479"]
[WhiteFideId "-1"]
[BlackFideId "-1"]
[PlyCount "169"]
[GameId "2129404752039168"]
[EventDate "2019.12.10"]
[EventType "tourn"]
[EventRounds "9"]
[EventCountry "UKR"]
[EventCategory "15"]
[SourceTitle "10 Days #600"]
[Source "Chess Mix"]
[SourceDate "2019.12.20"]
[SourceVersion "1"]
[SourceVersionDate "2019.12.20"]
[SourceQuality "1"]
[TimeControl "40/5400+30:1800+30"]

1. d4 {[%emt 0:00:00]} d5 {[%emt 0:00:00]} 2. c4 {[%emt 0:00:00]} dxc4 {[%emt 0:00:00]} 3. e4 {[%emt 0:00:41]} Nc6 {[%emt 0:00:00]} 4. Nf3 {[%emt 0:00:27]} Bg4 {[%emt 0:00:30]} 5. d5 {[%emt 0:00:05]} Bxf3 {[%emt 0:03:33]} 6. gxf3 {[%emt 0:00:42]} Ne5 {[%emt 0:00:07]} 7. f4 {[%emt 0:03:00]} Nd3+ {[%emt 0:00:20]} 8. Bxd3 {[%emt 0:00:04]} cxd3 {[%emt 0:00:06]} 9. Nc3 {[%emt 0:01:34]} Nf6 {[%emt 0:05:19]} 10. Be3 {[%emt 0:01:33]} g6 {[%emt 0:01:32]} 11. Qxd3 {[%emt 0:01:14]} c6 {[%emt 0:03:50]} 12. O-O-O {[%emt 0:00:05]} Bg7 {[%emt 0:00:38]} 13. dxc6 {[%emt 0:04:22]} Qxd3 {[%emt 0:02:52]} 14. Rxd3 {[%emt 0:00:04]} bxc6 {[%emt 0:00:08]} 15. Rhd1 {[%emt 0:00:11]} O-O {[%emt 0:00:41]} 16. e5 {[%emt 0:00:04]} Ng4 {[%emt 0:06:20]} 17. h3 {[%emt 0:01:39]} Nxe3 {[%emt 0:00:33]} 18. fxe3 {[%emt 0:00:02]} f6 {[%emt 0:04:46]} 19. e6 {[%emt 0:00:37]} f5 {[%emt 0:00:57]} 20. Na4 {[%emt 0:02:39]} Rab8 {[%emt 0:03:10]} 21. a3 {[%emt 0:05:37]} a5 {[%emt 0:07:11]} 22. Rd7 {[%emt 0:00:41]} Bf6 {[%emt 0:00:50]} 23. Kc2 {[%emt 0:01:24]} Rfc8 {[%emt 0:12:51]} 24. R1d3 {[%emt 0:10:23]} Kg7 {[%emt 0:09:27]} 25. Ra7 {[%emt 0:01:20]} Rb5 {[%emt 0:02:45]} 26. Ra6 {[%emt 0:01:51]} g5 {[%emt 0:02:54]} 27. fxg5 {[%emt 0:01:38]} Bxg5 {[%emt 0:01:16]} 28. Nb6 {[%emt 0:00:17]} Rb8 {[%emt 0:00:34]} 29. Nc4 {[%emt 0:00:15]} Rc5 {[%emt 0:00:33]} 30. b3 {[%emt 0:01:58]} Kf6 {[%emt 0:05:11]} 31. Rxa5 {[%emt 0:00:48]} Rxa5 {[%emt 0:01:00]} 32. Nxa5 {[%emt 0:00:04]} Ra8 {[%emt 0:00:02]} 33. b4 {[%emt 0:03:24]} c5 {[%emt 0:00:26]} 34. Nc6 {[%emt 0:00:49]} cxb4 {[%emt 0:04:07]} 35. axb4 {[%emt 0:00:18]} Ra2+ {[%emt 0:00:49]} 36. Kc3 {[%emt 0:05:24]} Re2 {[%emt 0:03:27]} 37. Nd4 {[%emt 0:03:14]} Rxe3 {[%emt 0:02:12]} 38. b5 {[%emt 0:00:36]} Re1 {[%emt 0:03:14]} 39. Rf3 {[%emt 0:01:11]} Rc1+ {[%emt 0:05:02]} 40. Kd3 {[%emt 0:00:00]} f4 {[%emt 0:00:00]} 41. Ke4 {[%emt 0:01:46]} Rb1 {[%emt 0:01:53]} 42. Kd5 {[%emt 0:04:55]} h5 {[%emt 0:05:56]} 43. Rd3 {[%emt 0:01:28]} Bh4 {[%emt 0:03:52]} 44. Rf3 {[%emt 0:00:42]} Bg5 {[%emt 0:01:26]} 45. Nb3 {[%emt 0:02:06]} Rd1+ {[%emt 0:00:31]} 46. Kc6 {[%emt 0:00:05]} Kf5 {[%emt 0:01:51]} 47. Nc5 {[%emt 0:02:31]} Bf6 {[%emt 0:02:48]} 48. b6 {[%emt 0:01:42]} Be5 {[%emt 0:00:27]} 49. b7 {[%emt 0:01:21]} Rd6+ {[%emt 0:02:29]} 50. Kb5 {[%emt 0:00:06]} Rd1 {[%emt 0:00:09]} 51. Rb3 {[%emt 0:06:11]} h4 {[%emt 0:01:58]} 52. Ka6 {[%emt 0:03:45]} Ra1+ {[%emt 0:00:27]} 53. Kb6 {[%emt 0:00:18]} Rd1 {[%emt 0:00:54]} 54. Na6 {[%emt 0:07:41]} Rd6+ {[%emt 0:01:16]} 55. Kb5 {[%emt 0:01:02]} Rd5+ {[%emt 0:01:30]} 56. Kc4 {[%emt 0:00:38]} Rd4+ {[%emt 0:00:06]} 57. Kc5 {[%emt 0:00:35]} Rd1 {[%emt 0:00:45]} 58. Rb5 {[%emt 0:07:10]} f3 {[%emt 0:04:17]} 59. Kb6 {[%emt 0:11:33]} Rd8 {[%emt 0:02:54]} 60. Nb4 {[%emt 0:01:34]} f2 {[%emt 0:02:07]} 61. Rxe5+ {[%emt 0:01:08]} Kxe5 {[%emt 0:04:03]} 62. Nc6+ {[%emt 0:00:34]} Kxe6 {[%emt 0:00:08]} 63. Nxd8+ {[%emt 0:00:06]} Kd7 {[%emt 0:00:02]} 64. b8=Q {[%emt 0:00:24]} f1=Q {[%emt 0:00:07]} 65. Qc7+ {[%emt 0:00:11]} Ke8 {[%emt 0:00:06]} 66. Nc6 {[%emt 0:00:44]} Qb1+ {[%emt 0:00:55]} 67. Ka7 {[%emt 0:00:31]} Qa2+ {[%emt 0:00:23]} 68. Kb7 {[%emt 0:00:04]} Qb3+ {[%emt 0:00:14]} 69. Ka8 {[%emt 0:14:44]} Qa3+ {[%emt 0:01:24]} 70. Kb8 {[%emt 0:00:13]} Qb3+ {[%emt 0:00:12]} 71. Qb7 {[%emt 0:02:33]} Qg3+ {[%emt 0:00:10]} 72. Ka8 {[%emt 0:01:12]} Qa3+ {[%emt 0:00:21]} 73. Qa7 {[%emt 0:00:23]} Qxa7+ {[%emt 0:01:01]} 74. Kxa7 {[%emt 0:00:04]} Kf7 {[%emt 0:01:14]} 75. Ne5+ {[%emt 0:08:14]} Kf6 {[%emt 0:00:20]} 76. Nf3 {[%emt 0:00:07]} e5 {[%emt 0:01:36]} 77. Kb6 {[%emt 0:00:28]} e4 {[%emt 0:01:20]} 78. Ng1 {[%emt 0:00:45]} Ke5 {[%emt 0:00:27]} 79. Kc5 {[%emt 0:00:06]} e3 {[%emt 0:00:52]} 80. Kc4 {[%emt 0:00:10]} e2 {[%emt 0:01:35]} 81. Nxe2 {[%emt 0:00:04]} Ke4 {[%emt 0:00:05]} 82. Ng1 {[%emt 0:00:36]} Ke3 {[%emt 0:00:16]} 83. Kd5 {[%emt 0:00:03]} Kf2 {[%emt 0:00:04]} 84. Ke4 {[%emt 0:00:07]} Kxg1 {[%emt 0:00:03]} 85. Kf3 {[%emt 0:00:03]} 1-0

[Event "UKR-ch"]
[Site "Lutsk UKR"]
[Date "2019.12.16"]
[Round "6.4"]
[White "Golubka, Petro"]
[Black "Eljanov, Pavel"]
[Result "1/2-1/2"]
[ECO "B68"]
[WhiteElo "2479"]
[BlackElo "2663"]
[WhiteFideId "-1"]
[BlackFideId "-1"]
[PlyCount "99"]
[GameId "2129404752039169"]
[EventDate "2019.12.10"]
[EventType "tourn"]
[EventRounds "9"]
[EventCountry "UKR"]
[EventCategory "15"]
[SourceTitle "10 Days #600"]
[Source "Chess Mix"]
[SourceDate "2019.12.20"]
[SourceVersion "1"]
[SourceVersionDate "2019.12.20"]
[SourceQuality "1"]
[TimeControl "40/5400+30:1800+30"]

1. e4 c5 2. Nf3 Nc6 3. d4 cxd4 4. Nxd4 Nf6 5. Nc3 d6 6. Bg5 e6 7. Qd2 a6 8. O-O-O Be7 9. f4 Bd7 10. Nf3 b5 11. Bd3 b4 12. Ne2 h6 13. Bh4 a5 14. Ned4 Nxd4 15. Nxd4 Rc8 16. Rhe1 O-O 17. g4 Qb6 18. g5 hxg5 19. Bxg5 Qxd4 20. e5 g6 21. Bxf6 Bxf6 22. exf6 Qxf6 23. h4 Rc5 24. Be4 d5 25. Bd3 Rfc8 26. Kb1 Kf8 27. h5 gxh5 28. Qh2 h4 29. f5 exf5 30. Qf4 Bb5 31. Bxb5 Rxb5 32. b3 Rbc5 33. Re2 h3 34. Rd3 d4 35. Rh2 Rc3 36. Rdxh3 Rxh3 37. Rxh3 Re8 38. Rh1 Re5 39. a4 bxa3 40. Ka2 a4 41. bxa4 Qe6+ 42. Kxa3 Qd6+ 43. Ka2 d3 44. Rh8+ Kg7 45. Qh4 Qe6+ 46. Kb2 Qb6+ 47. Ka2 Qe6+ 48. Kb2 Qb6+ 49. Ka2 Qe6+ 50. Kb2 1/2-1/2

[Event "Kvibergspelen op"]
[Site "Kvibergspelen SWE"]
[Date "2019.09.27"]
[Round "1.5"]
[White "Golubka, Petro"]
[Black "Olsson, Thomas"]
[Result "1-0"]
[ECO "C74"]
[WhiteElo "2479"]
[BlackElo "1956"]
[WhiteFideId "-1"]
[BlackFideId "-1"]
[PlyCount "69"]
[GameId "2129404754935292"]
[EventDate "2019.09.27"]
[EventType "swiss"]
[EventRounds "8"]
[EventCountry "SWE"]
[SourceTitle "10 Days #592"]
[Source "ChessMix"]
[SourceDate "2019.10.01"]
[SourceVersion "1"]
[SourceVersionDate "2019.10.01"]
[SourceQuality "1"]
[TimeControl "15/90+5:0"]
[WhiteClock "0:03:47"]
[BlackClock "0:05:25"]

1. e4 {[%emt 0:00:00]} e5 {[%emt 0:00:00]} 2. Nf3 {[%emt 0:00:00]} Nc6 {[%emt 0:00:00]} 3. Bb5 {[%emt 0:00:00]} a6 {[%emt 0:00:00]} 4. Ba4 {[%emt 0:00:00]} d6 {[%emt 0:00:00]} 5. c3 {[%emt 0:00:00]} Nge7 {[%emt 0:00:00]} 6. d3 {[%emt 0:00:00]} Ng6 {[%emt 0:00:00]} 7. O-O {[%emt 0:00:00]} Be7 {[%emt 0:00:00]} 8. d4 {[%emt 0:00:00]} O-O {[%emt 0:00:00]} 9. Be3 {[%emt 0:00:00]} h6 {[%emt 0:00:00]} 10. Nbd2 {[%emt 0:00:00]} b5 {[%emt 0:00:00]} 11. Bb3 {[%emt 0:00:00]} Bg5 {[%emt 0:00:00]} 12. Nxg5 {[%emt 0:00:00]} hxg5 {[%emt 0:00:00]} 13. Qh5 {[%emt 0:00:00]} Nf4 {[%emt 0:00:00]} 14. Bxf4 {[%emt 0:00:00]} gxf4 {[%emt 0:00:00]} 15. Nf3 {[%emt 0:00:00]} Qf6 {[%emt 0:00:00]} 16. Ng5 {[%emt 0:00:00]} Qh6 {[%emt 0:00:00]} 17. Bxf7+ {[%emt 0:00:00]} Kh8 {[%emt 0:00:00]} 18. d5 {[%emt 0:00:00]} Nd8 {[%emt 0:00:00]} 19. h4 {[%emt 0:00:00]} Bd7 {[%emt 0:00:00]} 20. Rad1 {[%emt 0:00:00]} Qxh5 {[%emt 0:00:00]} 21. Bxh5 {[%emt 0:00:00]} Rf6 {[%emt 0:00:00]} 22. g3 {[%emt 0:00:00]} g6 {[%emt 0:00:00]} 23. Be2 {[%emt 0:00:00]} Nf7 {[%emt 0:00:00]} 24. Nf3 {[%emt 0:00:00]} Bh3 {[%emt 0:00:00]} 25. Rfe1 {[%emt 0:00:00]} Bg4 {[%emt 0:00:00]} 26. Nh2 {[%emt 0:00:00]} Bxe2 {[%emt 0:00:00]} 27. Rxe2 {[%emt 0:00:00]} g5 {[%emt 0:01:01.30]} 28. Ng4 {[%emt 0:00:00]} Rg6 {[%emt 0:00:04]} 29. h5 {[%emt 0:00:00]} Rg7 {[%emt 0:00:03]} 30. Kg2 {[%emt 0:00:00]} Rh7 {[%emt 0:00:11]} 31. Rh1 {[%emt 0:01:03.30]} Kg7 {[%emt 0:01:38]} 32. c4 {[%emt 0:00:41]} Rah8 {[%emt 0:00:09]} 33. cxb5 {[%emt 0:00:08]} axb5 {[%emt 0:00:04]} 34. Rc2 {[%emt 0:00:02]} Rc8 {[%emt 0:00:23]} 35. Rhc1 {[%emt 0:00:06]} 1-0

[Event "Kvibergspelen op"]
[Site "Kvibergspelen SWE"]
[Date "2019.09.27"]
[Round "2.5"]
[White "Troberg Eskola, Love"]
[Black "Golubka, Petro"]
[Result "0-1"]
[ECO "B11"]
[WhiteElo "2143"]
[BlackElo "2479"]
[WhiteFideId "-1"]
[BlackFideId "-1"]
[PlyCount "84"]
[GameId "2129404755000847"]
[EventDate "2019.09.27"]
[EventType "swiss"]
[EventRounds "8"]
[EventCountry "SWE"]
[SourceTitle "10 Days #592"]
[Source "ChessMix"]
[SourceDate "2019.10.01"]
[SourceVersion "1"]
[SourceVersionDate "2019.10.01"]
[SourceQuality "1"]
[TimeControl "15/90+5:0"]
[WhiteClock "0:06:14"]
[BlackClock "0:00:17"]

1. e4 {[%emt 0:00:00]} c6 {[%emt 0:00:00]} 2. Nc3 {[%emt 0:00:00]} d5 {[%emt 0:00:00]} 3. Nf3 {[%emt 0:00:00]} a6 {[%emt 0:00:00]} 4. h3 {[%emt 0:00:00]} g6 {[%emt 0:00:00]} 5. d4 {[%emt 0:00:00]} dxe4 {[%emt 0:00:00]} 6. Nxe4 {[%emt 0:00:00]} Bg7 {[%emt 0:00:00]} 7. Bf4 {[%emt 0:00:00]} Bf5 {[%emt 0:00:00]} 8. Qe2 {[%emt 0:00:00]} Bxe4 {[%emt 0:00:00]} 9. Qxe4 {[%emt 0:00:00]} Nf6 {[%emt 0:00:00]} 10. Qd3 {[%emt 0:00:00]} Nd5 {[%emt 0:00:00]} 11. Bd2 {[%emt 0:00:00]} Nd7 {[%emt 0:00:00]} 12. c4 {[%emt 0:00:00]} N5f6 {[%emt 0:00:00]} 13. Be2 {[%emt 0:00:00]} O-O {[%emt 0:00:00]} 14. O-O {[%emt 0:00:00]} Qc7 {[%emt 0:00:00]} 15. Rfe1 {[%emt 0:00:00]} Rad8 {[%emt 0:00:00]} 16. Bf1 {[%emt 0:00:00]} Rfe8 {[%emt 0:00:00]} 17. Qa3 {[%emt 0:00:00]} e5 {[%emt 0:00:00]} 18. Ba5 {[%emt 0:00:00]} b6 {[%emt 0:00:00]} 19. dxe5 {[%emt 0:00:00]} Nxe5 {[%emt 0:00:00]} 20. Rxe5 {[%emt 0:00:00]} Rxe5 {[%emt 0:00:00]} 21. Bxb6 {[%emt 0:00:25.30]} Qxb6 {[%emt 0:00:00]} 22. Nxe5 {[%emt 0:00:02]} Ne4 {[%emt 0:00:00]} 23. c5 {[%emt 0:00:37]} Nxc5 {[%emt 0:00:00]} 24. Nc4 {[%emt 0:00:21]} Qa7 {[%emt 0:00:00]} 25. Rc1 {[%emt 0:00:17]} Ne4 {[%emt 0:00:00]} 26. Qe3 {[%emt 0:00:30]} Qxe3 {[%emt 0:00:00]} 27. Nxe3 {[%emt 0:00:04]} c5 {[%emt 0:00:00]} 28. b3 {[%emt 0:01:05]} a5 {[%emt 0:00:00]} 29. Nc4 {[%emt 0:00:19]} Bd4 {[%emt 0:00:00]} 30. Rc2 {[%emt 0:00:03]} Ra8 {[%emt 0:00:00]} 31. Bd3 {[%emt 0:01:40]} Nf6 {[%emt 0:00:00]} 32. Re2 {[%emt 0:00:17]} Kf8 {[%emt 0:00:00]} 33. g4 {[%emt 0:00:12]} Ra7 {[%emt 0:00:00]} 34. Nd6 {[%emt 0:00:14]} Rd7 {[%emt 0:00:41.30]} 35. Nc4 {[%emt 0:00:05]} Nd5 {[%emt 0:00:07]} 36. Re4 {[%emt 0:00:28]} Nc3 {[%emt 0:00:28]} 37. Re1 {[%emt 0:00:21]} Nxa2 {[%emt 0:00:10]} 38. Re2 {[%emt 0:00:14]} Nc1 {[%emt 0:00:05]} 39. Rd2 {[%emt 0:00:25]} Nxd3 {[%emt 0:00:07]} 40. Rxd3 {[%emt 0:00:01]} Bxf2+ {[%emt 0:00:04]} 41. Kxf2 {[%emt 0:00:01]} Rxd3 {[%emt 0:00:01]} 42. Nxa5 {[%emt 0:00:02]} Rxh3 {[%emt 0:00:03]} 0-1

[Event "Kvibergspelen op"]
[Site "Kvibergspelen SWE"]
[Date "2019.09.27"]
[Round "3.4"]
[White "Golubka, Petro"]
[Black "Lindbol, Aleksander"]
[Result "1-0"]
[ECO "B12"]
[WhiteElo "2479"]
[BlackElo "2216"]
[WhiteFideId "-1"]
[BlackFideId "-1"]
[PlyCount "55"]
[GameId "2129404755000866"]
[EventDate "2019.09.27"]
[EventType "swiss"]
[EventRounds "8"]
[EventCountry "SWE"]
[SourceTitle "10 Days #592"]
[Source "ChessMix"]
[SourceDate "2019.10.01"]
[SourceVersion "1"]
[SourceVersionDate "2019.10.01"]
[SourceQuality "1"]
[TimeControl "15/90+5:0"]
[WhiteClock "0:04:53"]
[BlackClock "0:04:43"]

1. e4 {[%emt 0:00:00]} c6 {[%emt 0:00:00]} 2. d4 {[%emt 0:00:00]} d5 {[%emt 0:00:00]} 3. e5 {[%emt 0:00:00]} Bf5 {[%emt 0:00:00]} 4. Nc3 {[%emt 0:00:00]} e6 {[%emt 0:00:00]} 5. g4 {[%emt 0:00:00]} Bg6 {[%emt 0:00:00]} 6. Nge2 {[%emt 0:00:00]} Ne7 {[%emt 0:00:00]} 7. Nf4 {[%emt 0:00:00]} c5 {[%emt 0:00:00]} 8. h4 {[%emt 0:00:00]} cxd4 {[%emt 0:00:00]} 9. Nb5 {[%emt 0:00:00]} Nec6 {[%emt 0:00:00]} 10. h5 {[%emt 0:00:00]} Be4 {[%emt 0:00:00]} 11. f3 {[%emt 0:00:00]} a6 {[%emt 0:00:00]} 12. Nd6+ {[%emt 0:00:00]} Bxd6 {[%emt 0:00:00]} 13. exd6 {[%emt 0:00:00]} g5 {[%emt 0:00:00]} 14. Nh3 {[%emt 0:00:00]} Qxd6 {[%emt 0:00:00]} 15. Bg2 {[%emt 0:00:00]} Qg3+ {[%emt 0:00:00]} 16. Kf1 {[%emt 0:00:00]} f5 {[%emt 0:00:00]} 17. fxe4 {[%emt 0:00:00]} fxe4 {[%emt 0:00:00]} 18. Kg1 {[%emt 0:00:00]} Ne5 {[%emt 0:00:00]} 19. Nxg5 {[%emt 0:00:00]} Rf8 {[%emt 0:00:00]} 20. Rh3 {[%emt 0:00:00]} Qf2+ {[%emt 0:00:00]} 21. Kh1 {[%emt 0:00:00]} e3 {[%emt 0:00:00]} 22. Bxe3 {[%emt 0:00:00]} dxe3 {[%emt 0:00:00]} 23. Nxe6 {[%emt 0:00:00]} e2 {[%emt 0:00:00]} 24. Qe1 {[%emt 0:00:04.30]} Nxg4 {[%emt 0:00:15.30]} 25. Nxf8 {[%emt 0:00:21]} Qxe1+ {[%emt 0:00:02]} 26. Rxe1 {[%emt 0:00:01]} Nf2+ {[%emt 0:00:02]} 27. Kh2 {[%emt 0:00:05]} Nxh3 {[%emt 0:00:03]} 28. Ne6 {[%emt 0:00:06]} 1-0

[Event "Kvibergspelen op"]
[Site "Kvibergspelen SWE"]
[Date "2019.09.27"]
[Round "4.2"]
[White "Lyngsjo, Hakan"]
[Black "Golubka, Petro"]
[Result "0-1"]
[ECO "B51"]
[WhiteElo "2031"]
[BlackElo "2479"]
[WhiteFideId "-1"]
[BlackFideId "-1"]
[PlyCount "42"]
[GameId "2129404755009076"]
[EventDate "2019.09.27"]
[EventType "swiss"]
[EventRounds "8"]
[EventCountry "SWE"]
[SourceTitle "10 Days #592"]
[Source "ChessMix"]
[SourceDate "2019.10.01"]
[SourceVersion "1"]
[SourceVersionDate "2019.10.01"]
[SourceQuality "1"]
[TimeControl "15/90+5:0"]
[WhiteClock "0:10:55"]
[BlackClock "0:08:20"]

1. e4 {[%emt 0:00:00]} c5 {[%emt 0:00:00]} 2. Nf3 {[%emt 0:00:00]} d6 {[%emt 0:00:00]} 3. Bb5+ {[%emt 0:00:00]} Nd7 {[%emt 0:00:00]} 4. O-O {[%emt 0:00:00]} Ngf6 {[%emt 0:00:00]} 5. d4 {[%emt 0:00:00]} cxd4 {[%emt 0:00:00]} 6. Qxd4 {[%emt 0:00:00]} a6 {[%emt 0:00:00]} 7. Bxd7+ {[%emt 0:00:00]} Bxd7 {[%emt 0:00:00]} 8. c4 {[%emt 0:00:00]} g6 {[%emt 0:00:00]} 9. Nc3 {[%emt 0:00:00]} Bg7 {[%emt 0:00:00]} 10. b3 {[%emt 0:00:00]} O-O {[%emt 0:00:00]} 11. Bb2 {[%emt 0:00:00]} Bc6 {[%emt 0:00:00]} 12. Qd3 {[%emt 0:00:00]} Rc8 {[%emt 0:00:00]} 13. Nd5 {[%emt 0:00:00]} Nxd5 {[%emt 0:00:00]} 14. Bxg7 {[%emt 0:00:00]} Nf4 {[%emt 0:00:00]} 15. Qd2 {[%emt 0:00:00]} Nh3+ {[%emt 0:00:00]} 16. gxh3 {[%emt 0:00:00]} Kxg7 {[%emt 0:00:00]} 17. h4 {[%emt 0:00:00]} e5 {[%emt 0:00:00]} 18. Rfe1 {[%emt 0:00:00]} Qd7 {[%emt 0:00:00]} 19. Kh1 {[%emt 0:00:00]} f5 {[%emt 0:00:00]} 20. h5 {[%emt 0:00:00]} fxe4 {[%emt 0:00:00]} 21. h6+ {[%emt 0:00:00]} Kh8 {[%emt 0:00:00]} 0-1